fUST/lending_fUST_20250219
["ID","MTS","AMOUNT","RATE_DAILY","PERIOD"]
[353584730,1739939438397,-432.27488706,0.00017615,2]
[353584731,1739939438406,-250.0,0.00017648,10]
[353584732,1739939438415,-250.0,0.00017648,10]
[353584733,1739939438424,-250.0,0.00017648,10]
[353584735,1739939438433,-250.0,0.00017648,10]
[353584737,1739939438443,-287.576382,0.00017648,10]
[353584739,1739939438452,-12672.6385454,0.0001778,2]
[353584741,1739939438461,-1300.00000099,0.000178,2]
[353584743,1739939438472,-1500.0,0.0001785,2]
[353584745,1739939438482,-156.737,0.00017889,2]
[353584747,1739939438491,-5000.0,0.00017893,2]
[353584749,1739939438500,-3000.0,0.000179,2]
[353584750,1739939438510,-151.0,0.000179,2]
[353584751,1739939438519,-151.0,0.000179,2]
[353584752,1739939438528,-151.0,0.000179,2]
[353584753,1739939438538,-151.0,0.000179,2]
[353584754,1739939438547,-151.0,0.000179,2]
[353584755,1739939438556,-151.0,0.000179,2]
[353584756,1739939438566,-11066.39037187,0.000179,2]
[353584757,1739939438575,-3228.08365476,0.000179,2]
[353584758,1739939438585,-204.66108231,0.00017944,2]
[353584759,1739939438594,-314.0,0.00017944,2]
[353584760,1739939438604,-314.0,0.00017944,2]
[353584761,1739939438613,-261.86072004,0.00017944,2]
[353584762,1739939438623,-500.0,0.00017973,2]
[353584763,1739939438632,-500.0,0.00017973,2]
[353584764,1739939438641,-500.0,0.00017973,2]
[353584765,1739939438651,-500.0,0.00017973,2]
[353584766,1739939438660,-517.91034941,0.00017973,2]
[353584767,1739939438669,-500.0,0.00017973,2]
[353584768,1739939438679,-12672.6385454,0.0001798,2]
[353584769,1739939438688,-25345.2770909,0.0001798,2]
[353584770,1739939438697,-25345.2770909,0.0001799,2]
[353584771,1739939438707,-152071.662545,0.0001799,2]
[353584772,1739939438718,-151.0,0.00017998,2]
[353584773,1739939438727,-500.0,0.00017998,2]
[353584774,1739939438737,-160.0,0.00017999,2]
[353584775,1739939438746,-160.0,0.00017999,2]
[353584776,1739939438755,-538.0,0.00017999,2]
[353584777,1739939438764,-1971.0,0.00017999,2]
[353584778,1739939438773,-2290.0,0.00017999,2]
[353584779,1739939438782,-396.0,0.00017999,2]
[353584780,1739939438791,-87038.00091975,0.00018,5]
[353584781,1739939438801,-15585.30753855,0.00018,5]
[353584782,1739939438810,-5433.48094983,0.00018,15]
[353584783,1739939438820,-207161.00311861,0.00018,15]
[353584784,1739939438832,-10728.22682405,0.00018,15]
[353584785,1739939438844,-44239.52452312,0.00018,15]
[353584786,1739939438855,-23171.67093356,0.00018,15]
[353584787,1739939438866,-417.70330544,0.00018,15]
[353584788,1739939438878,-8865.58307668,0.00018,15]
[353584789,1739939438890,-69528.52971833,0.00018,15]
[353584869,1739939442588,-865.35514618,0.00016037,2]
[353584870,1739939442599,-485.98931796,0.00016198,2]
[353584871,1739939442609,-379.36582822,0.00016198,2]
[353584872,1739939442619,-500.0,0.00016991,2]
[353584873,1739939442629,-192.42971981,0.00016991,2]
[353584874,1739939442639,-389.47558646,0.00016991,2]
[353584875,1739939442648,-14138.2768513,0.00018,15]
[353584905,1739939443353,-32975.32639237,0.00018,15]
[353584906,1739939443365,-52131.69547551,0.00018,15]
[353584907,1739939443377,-791.2784889,0.00018,15]
[353584908,1739939443389,-1000.9,0.00018,15]
[353584911,1739939446270,-7172.22631319,0.00018,15]
[353584912,1739939446333,-11817.68680416,0.00018,15]
[353584913,1739939446345,-948.37496195,0.00018,15]
[353584914,1739939446357,-79497.62397555,0.00018,15]
[353584916,1739939643395,161.004447,9.041e-05,2]
[353585691,1739940429128,-197.56344082,0.00012471,2]
[353585692,1739940429150,-197.56344082,0.00012597,2]
[353585693,1739940429173,-197.56344082,0.00012724,2]
[353585694,1739940429195,-83.29077314,0.00013501,2]
[353585695,1739940431115,-216.70922686,0.00013501,2]
[353585696,1739940431138,-156.75359652,0.00013501,2]
[353585697,1739940433157,-730.99096524,0.00013366,2]
[353585698,1739940433180,-343.24640348,0.00013501,2]
[353585699,1739940433203,-387.74456176,0.00013501,2]
[353585700,1739940433224,-69.55387226,0.00013502,2]
[353585701,1739940436088,-7101.37321856,0.00013502,2]
[353585702,1739940440097,-955.01133043,0.00013502,2]
[353585703,1739940442100,-12603.00556681,0.00013367,2]
[353585704,1739940442123,-666.72382282,0.00013502,2]
[353585705,1739940454087,-631.60165706,0.00013367,2]
[353585706,1739940546284,-3199.75624796,0.00013367,2]
[353585707,1739940546307,-300.0,0.00013501,2]
[353585708,1739940546329,-16107.33775593,0.00013502,2]
[353585709,1739940546352,-308.5887921,0.00013666,2]
[353585787,1739940632691,-252.76129741,0.00013666,2]
[353585792,1739940632746,-75.64400779,0.00013666,2]
[353585794,1739940632755,-159.55569363,0.00013698,4]
[353585796,1739940632765,-500.0,0.00013698,2]
[353585797,1739940632775,-500.0,0.00013698,2]
[353585799,1739940632785,-500.0,0.00013698,2]
[353585801,1739940632795,-513.68099206,0.00013698,2]
[353585803,1739940632804,-242.235038,0.00013699,2]
[353585804,1739940632819,-174.424443,0.00013699,2]
[353585806,1739940632831,-500.0,0.0001378,2]
[353585808,1739940632841,-186.31900794,0.0001378,2]
[353585809,1739940632850,-616.6,0.0001378,2]
[353585811,1739940632860,-300.0,0.00013898,2]
[353585813,1739940632869,-501.6424785,0.00013899,2]
[353585814,1739940632879,-500.0,0.00013899,2]
[353585815,1739940632888,-371.39732752,0.00013899,2]
[353586283,1739940638356,-128.60267248,0.00013899,2]
[353586285,1739940638366,-501.14421079,0.00013899,2]
[353586287,1739940638376,-532.34021383,0.00013899,2]
[353586289,1739940638386,-500.0,0.00013899,2]
[353586291,1739940638395,-500.0,0.00013899,2]
[353586293,1739940638404,-503.9154774,0.00013899,2]
[353586295,1739940638414,-501.91023141,0.00013899,5]
[353586297,1739940638423,-500.0,0.00013899,2]
[353586298,1739940638435,-500.72476133,0.00013899,2]
[353586299,1739940638445,-501.04660389,0.00013899,2]
[353586300,1739940638454,-500.30270228,0.00013899,2]
[353586301,1739940638464,-531.95538554,0.00013899,2]
[353586302,1739940638474,-187.023742,0.00014032,2]
[353586303,1739940638484,-501.24934653,0.00014078,2]
[353586304,1739940638494,-500.0,0.00014078,2]
[353586305,1739940638503,-500.0,0.00014078,2]
[353586306,1739940638513,-594.74,0.00014078,2]
[353586307,1739940638522,-500.0,0.00014078,2]
[353586308,1739940638531,-500.0,0.00014078,2]
[353586309,1739940638541,-535.49,0.00014078,2]
[353586310,1739940638551,-328.71024997,0.00014078,2]
[353586311,1739940638560,-500.0,0.00014078,2]
[353586312,1739940638570,-500.0,0.00014078,2]
[353586313,1739940638579,-500.0,0.00014078,2]
[353586314,1739940638588,-500.0,0.00014078,2]
[353586315,1739940638598,-500.0,0.00014078,2]
[353586317,1739940638607,-500.0,0.00014078,2]
[353586319,1739940638619,-502.77628447,0.00014078,2]
[353586321,1739940638628,-500.0,0.00014078,2]
[353586323,1739940638637,-187.023742,0.00014078,2]
[353586325,1739940638646,-187.023742,0.00014125,2]
[353586327,1739940638655,-500.0,0.00014164,2]
[353586329,1739940638665,-187.023742,0.00014172,2]
[353586331,1739940638674,-526.1048162,0.00014291,2]
[353586333,1739940638684,-303.1449666,0.00014406,2]
[353586334,1739940638693,-156.47409162,0.00014835,2]
[353586335,1739940638702,-500.0,0.00014935,2]
[353586336,1739940638712,-521.92,0.00014935,2]
[353586337,1739940638721,-500.0,0.00014935,2]
[353586338,1739940638731,-500.0,0.00014935,2]
[353586339,1739940638740,-500.0,0.00014935,2]
[353586340,1739940638749,-500.0,0.00014935,2]
[353586341,1739940638759,-502.0662777,0.00014935,2]
[353586342,1739940638768,-182.2703497,0.00014935,2]
[353586343,1739940638777,-317.40383581,0.00014935,2]
[353586344,1739940638787,-500.0,0.00014935,2]
[353586345,1739940638796,-68.87340108,0.00014935,2]
[353586346,1739940638892,-431.12659892,0.00014935,2]
[353586347,1739940638902,-501.6861473,0.00014935,2]
[353586348,1739940638911,-503.83014766,0.00014935,2]
[353586349,1739940638920,-501.89911307,0.00014935,2]
[353586350,1739940638930,-501.15493272,0.00014935,2]
[353586351,1739940638939,-500.0,0.00014935,2]
[353586352,1739940638948,-500.0,0.00014935,2]
[353586353,1739940638957,-455.27063943,0.00014935,2]
[353586354,1739940638973,-44.72936057,0.00014935,2]
[353586355,1739940638982,-503.24012047,0.00014935,2]
[353586356,1739940638991,-500.0,0.00014935,2]
[353586357,1739940639000,-241.06952807,0.00014935,2]
[353586358,1739940639010,-556.59,0.00014935,2]
[353586359,1739940639019,-502.01130652,0.00014935,2]
[353586360,1739940639028,-500.0,0.00014935,2]
[353586361,1739940639037,-347.98892053,0.00014935,2]
[353586362,1739940639047,-500.0,0.00014935,2]
[353586363,1739940639056,-510.3607657,0.00014935,2]
[353586364,1739940639065,-7438.69753278,0.00014936,2]
[353586365,1739940639075,-500.0,0.00015018,2]
[353586366,1739940639084,-500.0,0.000151,2]
[353586367,1739940639093,-500.0,0.00015182,2]
[353586368,1739940639102,-241.0,0.00015228,2]
[353586369,1739940639111,-500.0,0.00015264,2]
[353586370,1739940639121,-500.0,0.00015346,2]
[353586371,1739940639130,-500.0,0.00015429,2]
[353586373,1739940639139,-500.0,0.00015511,2]
[353586375,1739940639149,-500.0,0.00015593,2]
[353586377,1739940639159,-500.0,0.00015675,2]
[353586379,1739940639169,-151.0,0.00015743,2]
[353586381,1739940639178,-500.0,0.00015757,2]
[353586382,1739940639187,-161.004447,0.00015775,2]
[353586383,1739940639197,-500.0,0.0001584,2]
[353586385,1739940639207,-500.0,0.00015922,2]
[353586387,1739940639217,-500.0,0.00016004,2]
[353586389,1739940639226,-432.86,0.00016086,2]
[353586391,1739940639236,-156.737,0.00016098,2]
[353586393,1739940639246,-500.0,0.00016198,2]
[353586395,1739940639256,-500.0,0.00016198,2]
[353586398,1739940639266,-500.0,0.00016198,2]
[353586399,1739940639275,-504.5964212,0.00016198,2]
[353586401,1739940639285,-500.0,0.00016198,2]
[353586403,1739940639294,-503.24,0.00016198,2]
[353586405,1739940639303,-500.0,0.00016198,2]
[353586407,1739940639313,-500.0,0.00016199,2]
[353586409,1739940639322,-500.0,0.00016199,2]
[353586411,1739940639331,-500.0,0.00016199,2]
[353586413,1739940639341,-622.63291052,0.00016199,2]
[353586415,1739940639350,-13279.66844627,0.000162,2]
[353586417,1739940639359,-13279.66844624,0.000162,2]
[353586419,1739940639368,-13279.66844624,0.000162,2]
[353586421,1739940639377,-500.0,0.0001628,2]
[353586423,1739940639386,-511.49,0.0001628,2]
[353586424,1739940639395,-500.0,0.00016363,2]
[353586426,1739940639404,-500.0,0.00016445,2]
[353586428,1739940639413,-500.0,0.00016527,2]
[353586429,1739940639423,-500.0,0.00016609,2]
[353586431,1739940639435,-500.0,0.00016691,2]
[353586434,1739940639446,-500.0,0.00016773,2]
[353586436,1739940639455,-13279.66844624,0.00016825,2]
[353586438,1739940639464,-500.0,0.00016856,2]
[353586439,1739940639475,-13143.5177644,0.00016894,2]
[353586442,1739940639484,-500.0,0.00016904,2]
[353586444,1739940639493,-500.0,0.00016938,2]
[353586446,1739940639504,-500.0,0.0001702,2]
[353586447,1739940639513,-500.0,0.00017024,2]
[353586450,1739940639525,-500.0,0.00017102,2]
[353586452,1739940639535,-500.0,0.00017184,2]
[353586454,1739940639543,-500.0,0.00017267,2]
[353586455,1739940639553,-500.0,0.00017349,2]
[353586458,1739940639562,-500.0,0.00017431,2]
[353586459,1739940639572,-500.0,0.00017513,2]
[353586461,1739940639581,-501.17441145,0.00017533,2]
[353586463,1739940639590,-500.0,0.00017533,2]
[353586465,1739940639600,-502.89752128,0.00017533,2]
[353586467,1739940639609,-500.0,0.00017533,2]
[353586469,1739940639619,-588.42331322,0.00017533,2]
[353586471,1739940639627,-500.0,0.00017533,2]
[353586472,1739940639637,-501.6249648,0.00017533,2]
[353586473,1739940639646,-503.65481413,0.00017533,2]
[353586474,1739940639656,-500.0,0.00017595,2]
[353586475,1739940639665,-250.0,0.00017653,10]
[353586476,1739940639675,-250.0,0.00017653,10]
[353586477,1739940639685,-250.0,0.00017653,10]
[353586478,1739940639694,-250.0,0.00017653,10]
[353586479,1739940639704,-287.576382,0.00017653,10]
[353586480,1739940639714,-500.0,0.00017678,2]
[353586481,1739940639723,-567.56828944,0.0001776,2]
[353586482,1739940639733,-306.0,0.00017867,2]
[353586483,1739940639742,-306.5726291,0.00017867,2]
[353586484,1739940639751,-306.0,0.00017867,2]
[353586485,1739940639761,-500.0,0.00017889,2]
[353586486,1739940639771,-13143.5177644,0.0001789,2]
[353586487,1739940639781,-4464.92800448,0.0001789,2]
[353586488,1739940639791,-5000.0,0.00017893,2]
[353586489,1739940639800,-500.0,0.00017899,2]
[353586490,1739940639810,-3000.0,0.000179,2]
[353586491,1739940639821,-3228.08365476,0.000179,2]
[353586492,1739940639830,-172.8321209,0.000179,2]
[353586493,1739940639840,-13279.66844624,0.000179,2]
[353586494,1739940639849,-204.66108231,0.00017944,2]
[353586495,1739940639858,-314.0,0.00017944,2]
[353586496,1739940639867,-314.0,0.00017944,2]
[353586497,1739940639877,-261.86072004,0.00017944,2]
[353586498,1739940639886,-500.0,0.00017973,2]
[353586499,1739940639896,-500.0,0.00017973,2]
[353586500,1739940639905,-500.0,0.00017973,2]
[353586501,1739940639915,-500.0,0.00017973,2]
[353586502,1739940639932,-500.0,0.00017973,2]
[353586503,1739940639944,-517.91034941,0.00017973,2]
[353586504,1739940639954,-500.29126964,0.00017973,2]
[353586505,1739940639964,-285.16746156,0.00017973,2]
[353586506,1739940639974,-500.574386,0.00017973,2]
[353586507,1739940639984,-268.713074,0.00017973,2]
[353586508,1739940639994,-500.0,0.00017973,2]
[353586509,1739940640004,-261.53939512,0.00017973,2]
[353586511,1739940640171,-500.97502543,0.00017973,2]
[353586512,1739940640181,-319.63857631,0.0001798,2]
[353586513,1739940640190,-26287.0355289,0.0001798,2]
[353586514,1739940640200,-500.0,0.00017989,2]
[353586515,1739940640210,-39430.5532933,0.0001799,2]
[353586516,1739940640220,-144578.695409,0.0001799,2]
[353586517,1739940640231,-151.0,0.00017998,2]
[353586518,1739940640240,-160.0,0.00017999,2]
[353586519,1739940640250,-160.0,0.00017999,2]
[353586520,1739940640260,-160.0,0.00017999,2]
[353586521,1739940640269,-1971.0,0.00017999,2]
[353586522,1739940640279,-538.0,0.00017999,2]
[353586523,1739940640288,-2290.0,0.00017999,2]
[353586524,1739940640297,-187.59,0.00017999,2]
[353586525,1739940640307,-396.0,0.00017999,2]
[353586526,1739940640317,-95839.42074714,0.00018,5]
[353586527,1739940640326,-15756.47871512,0.00018,5]
[353586528,1739940640335,-80868.80014809,0.00018,15]
[353586529,1739940640840,-500.0,0.00014935,2]
[353586530,1739940640849,-3000.0,0.000179,2]
[353586531,1739940640859,-7545.55533322,0.00018,15]
[353586806,1739940643444,-500.0,0.00015018,2]
[353586808,1739940643501,-500.0,0.000151,2]
[353586809,1739940643512,-500.0,0.00015182,2]
[353586810,1739940643522,-351.81898326,0.00015264,2]
[353586811,1739940643534,-148.18101674,0.00015264,2]
[353586812,1739940643543,-500.0,0.00015346,2]
[353586813,1739940643553,-500.0,0.00015429,2]
[353586814,1739940643563,-500.0,0.00015511,2]
[353586815,1739940643572,-500.0,0.00015593,2]
[353586816,1739940643582,-500.0,0.00015675,2]
[353586817,1739940643591,-151.0,0.00017998,2]
[353586818,1739940643601,-289.336,0.00017999,2]
[353586819,1739940643610,-2624.84618851,0.00018,15]
[353586822,1739940643621,-1321.5250055,0.00018,15]
[353586824,1739940643637,-10335.29445079,0.00018,15]
[353587029,1739940646553,-500.0,0.00015757,2]
[353587031,1739940646562,-500.0,0.0001584,2]
[353587033,1739940646571,-500.0,0.00015922,2]
[353587035,1739940646580,-500.0,0.00016004,2]
[353587037,1739940646589,-500.0,0.00016086,2]
[353587039,1739940646599,-118.36578087,0.00016168,2]
[353587041,1739940646611,-381.63421913,0.00016168,2]
[353587043,1739940646621,-413.97953726,0.0001625,2]
[353587045,1739940646630,-876.81133926,0.00018,15]
[353587047,1739940646641,-66291.23196265,0.00018,15]
[353587408,1739941007306,161.004447,9.041e-05,2]
[353587409,1739941175486,343.0,0.00019,120]
[353587414,1739941632092,-452.67,0.00010634,2]
[353587415,1739941632113,-452.67,0.00010741,2]
[353587416,1739941632134,-1084.7717197,0.00011507,15]
[353587417,1739941635084,-1515.2282803,0.00011507,15]
[353587418,1739941635107,-300.0,0.00013181,2]
[353587419,1739941635130,-4110.07135266,0.00013182,2]
[353587420,1739941651162,-452.67,0.00010959,2]
[353587421,1739941651185,-221.20244142,0.0001305,2]
[353587422,1739941652114,-246.59223851,0.0001305,2]
[353587423,1739941652136,-5167.18171679,0.00013182,2]
[353587424,1739941653084,-419.35432236,0.00013182,2]
[353587425,1739941746082,-15203.39260819,0.00013182,2]
[353587426,1739941746104,-500.0,0.00013698,2]
[353587427,1739941746126,-500.0,0.00013698,2]
[353587428,1739941746148,-500.0,0.00013698,2]
[353587429,1739941746168,-178.559131,0.00013699,2]
[353587430,1739941746190,-521.353299,0.00013699,2]
[353587431,1739941746213,-500.0,0.0001378,2]
[353587432,1739941746245,-500.0,0.0001378,2]
[353587433,1739941746273,-500.0,0.0001378,2]
[353587434,1739941746296,-500.0,0.00013863,2]
[353587435,1739941746319,-500.0,0.00013863,2]
[353587436,1739941746341,-500.0,0.00013863,2]
[353587437,1739941746362,-152.0,0.00013929,2]
[353587438,1739941746384,-500.0,0.00013945,2]
[353587439,1739941746409,-500.0,0.00013945,2]
[353587440,1739941746432,-500.0,0.00013945,2]
[353587441,1739941746455,-649.20642607,0.00013988,2]
[353587442,1739941746476,-649.20642607,0.00013989,2]
[353587443,1739941746497,-649.20642607,0.0001399,2]
[353587444,1739941746520,-500.0,0.00014027,2]
[353587445,1739941746542,-500.0,0.00014027,2]
[353587446,1739941746566,-500.0,0.00014027,2]
[353587447,1739941746589,-500.0,0.00014076,2]
[353587448,1739941746612,-500.0,0.00014076,2]
[353587449,1739941746634,-500.0,0.00014076,2]
[353587450,1739941746658,-500.0,0.00014076,2]
[353587451,1739941746682,-500.0,0.00014076,2]
[353587452,1739941746704,-500.0,0.00014076,2]
[353587453,1739941746726,-2673.82,0.00014076,2]
[353587454,1739941746747,-500.0,0.00014077,2]
[353587455,1739941746770,-500.0,0.00014077,2]
[353587456,1739941746796,-500.0,0.00014109,2]
[353587457,1739941746819,-500.0,0.00014109,2]
[353587458,1739941746998,-500.0,0.00014109,2]
[353587459,1739941747024,-225.72,0.00014158,2]
[353587460,1739941747051,-500.0,0.00014158,2]
[353587461,1739941747075,-500.0,0.00014158,2]
[353587462,1739941747096,-500.0,0.00014158,2]
[353587463,1739941747119,-2673.82,0.00014158,2]
[353587464,1739941747142,-500.0,0.00014159,2]
[353587465,1739941747165,-500.0,0.00014159,2]
[353587466,1739941747188,-500.0,0.00014164,2]
[353587467,1739941747211,-432.05695954,0.00014191,2]
[353587468,1739941747235,-500.0,0.00014191,2]
[353587469,1739941747257,-204.989,0.00014241,2]
[353587470,1739941747279,-500.0,0.00014241,2]
[353587471,1739941747302,-500.0,0.00014241,2]
[353587472,1739941747329,-500.0,0.00014241,2]
[353587473,1739941747353,-500.0,0.00014241,2]
[353587474,1739941747375,-500.0,0.00014241,2]
[353587475,1739941747397,-2673.82,0.00014241,2]
[353587476,1739941747421,-500.0,0.00014273,2]
[353587477,1739941747444,-500.0,0.00014323,2]
[353587478,1739941747467,-500.0,0.00014323,2]
[353587479,1739941747489,-500.0,0.00014323,2]
[353587480,1739941747513,-2673.82,0.00014323,2]
[353587481,1739941747534,-500.0,0.00014324,2]
[353587482,1739941747557,-500.0,0.00014324,2]
[353587483,1739941747578,-500.0,0.00014405,2]
[353587484,1739941747601,-500.0,0.00014405,2]
[353587485,1739941747624,-500.0,0.00014405,2]
[353587486,1739941747645,-500.0,0.00014405,2]
[353587487,1739941747668,-2673.82,0.00014405,2]
[353587488,1739941747689,-500.0,0.00014406,2]
[353587489,1739941747712,-500.0,0.00014406,2]
[353587490,1739941747735,-500.0,0.00014487,2]
[353587491,1739941747758,-500.0,0.00014487,2]
[353587492,1739941747781,-2673.82,0.00014487,2]
[353587493,1739941747805,-192.69626016,0.00014488,2]
[353587494,1739941747828,-500.0,0.00014488,2]
[353587495,1739941747850,-500.0,0.00014569,2]
[353587496,1739941747874,-500.0,0.00014569,2]
[353587497,1739941747897,-1130.17497494,0.00014569,2]
[353587547,1739941832827,-500.0,0.00014164,2]
[353587548,1739941832838,-1543.64502506,0.00014569,2]
[353587549,1739941832847,-500.0,0.00014652,2]
[353587550,1739941832858,-2673.82,0.00014652,2]
[353587551,1739941832867,-470.70394094,0.00014734,2]
[353587552,1739941832879,-2673.82,0.00014734,2]
[353587553,1739941832890,-319.63857631,0.00014766,2]
[353587554,1739941832902,-967.43299999,0.00014816,2]
[353587565,1739941838547,-1706.38700001,0.00014816,2]
[353587568,1739941838557,-345.97893577,0.00014898,2]
[353587573,1739941838603,-283.65287536,0.00014898,2]
[353587575,1739941838614,-2044.18818887,0.00014898,2]
[353587577,1739941838624,-3703.06181153,0.0001496,2]
[353587624,1739941840999,-1239.15772878,0.0001496,2]
[353587659,1739941844170,-2496.47799247,0.0001496,2]
[353587661,1739941844180,-2673.82,0.0001498,2]
[353587663,1739941844189,-2673.82,0.00015063,2]
[353587665,1739941844198,-356.38200603,0.00015145,2]
[353587667,1739941844210,-2317.43799397,0.00015145,2]
[353587669,1739941844220,-17.09054258,0.00015207,2]
[353587671,1739941844231,-946.35456482,0.00015207,2]
[353587678,1739941844290,-749.58507329,0.00015207,2]
[353587683,1739941844301,-5340.08850447,0.00015207,2]
[353587686,1739941844311,-1901.26791554,0.00015217,2]
[353587888,1739941846799,-976.0,0.00015217,2]
[353587906,1739942000513,161.004447,9.041e-05,2]
[353587913,1739942770742,250.0,0.00012,30]
[353587916,1739942830123,-711.3,0.00010741,2]
[353587917,1739942830147,-711.3,0.00010849,2]
[353587918,1739942830174,-711.3,0.00010959,2]
[353587919,1739942830197,-300.0,0.00013466,2]
[353587920,1739942830221,-1690.82347744,0.00013467,2]
[353587921,1739942832080,-329.59,0.00010959,2]
[353587922,1739942832103,-620.22936609,0.00013467,2]
[353587924,1739942842138,-329.02509608,0.00013332,2]
[353587925,1739942842165,-954.48590845,0.00013467,2]
[353587926,1739942843100,-17293.62457049,0.00013467,2]
[353587927,1739942846127,-329.02509608,0.00013199,2]
[353587928,1739942846150,-345.66447222,0.00013467,2]
[353587929,1739942850080,-1112.91615073,0.00013467,2]
[353587934,1739942915733,1050.37210985,0.00017657,90]
[353587997,1739943037807,-500.0443638,0.00013061,2]
[353587998,1739943037817,-979.87070439,0.00013332,2]
[353587999,1739943037829,-2882.25605458,0.00013467,2]
[353588000,1739943037839,-500.0,0.00013698,2]
[353588001,1739943037849,-176.491787,0.00013699,2]
[353588002,1739943037859,-845.205672,0.00013699,2]
[353588003,1739943037868,-259.0,0.00013899,2]
[353588004,1739943037878,-501.37859192,0.00013899,2]
[353588005,1739943037888,-4744.21861014,0.000139,2]
[353588006,1739943037900,-10607.32765812,0.000139,2]
[353588007,1739943037909,-505.55158828,0.00013944,2]
[353588009,1739943037918,-503.08980367,0.00013944,2]
[353588011,1739943037927,-500.0,0.00013944,2]
[353588013,1739943037937,-501.16188201,0.00013944,2]
[353588015,1739943037947,-500.0,0.00013944,2]
[353588017,1739943037957,-500.0,0.00013944,2]
[353588019,1739943037968,-500.0,0.00013944,2]
[353588021,1739943037978,-250.0,0.00014,30]
[353588023,1739943037987,-501.93662762,0.00014026,2]
[353588025,1739943037996,-500.0,0.00014075,2]
[353588027,1739943038005,-500.0,0.00014075,2]
[353588029,1739943038014,-223.60822916,0.00014075,2]
[353588031,1739943038023,-226.68229789,0.00014075,2]
[353588032,1739943038035,-276.80990865,0.00014075,2]
[353588033,1739943038043,-409.17441972,0.00014075,2]
[353588042,1739943040248,-37.97553303,0.00014075,2]
[353588043,1739943040258,-292.17846697,0.00014075,2]
[353588044,1739943040271,-207.82153303,0.00014075,2]
[353588045,1739943040281,-500.0,0.00014075,2]
[353588046,1739943040291,-500.0,0.00014075,2]
[353588047,1739943040301,-500.0,0.00014075,2]
[353588048,1739943040312,-500.0,0.00014075,2]
[353588049,1739943040322,-437.16518361,0.00014075,2]
[353588050,1739943040334,-588.13398563,0.00014076,2]
[353588051,1739943040344,-500.38335343,0.00014076,2]
[353588052,1739943040353,-501.30725787,0.00014076,2]
[353588053,1739943040362,-500.20020121,0.00014076,2]
[353588054,1739943040372,-502.55415776,0.00014076,2]
[353588055,1739943040381,-502.69712252,0.00014076,2]
[353588056,1739943040391,-501.04451241,0.00014076,2]
[353588057,1739943040400,-500.71237548,0.00014076,2]
[353588058,1739943040410,-501.42058717,0.00014076,2]
[353588059,1739943040419,-501.39987005,0.00014076,2]
[353588060,1739943040429,-504.39506712,0.00014076,2]
[353588061,1739943040438,-500.0,0.00014076,2]
[353588062,1739943040447,-500.0,0.00014076,2]
[353588063,1739943040455,-501.40519917,0.00014076,2]
[353588064,1739943040465,-502.37723169,0.00014076,2]
[353588065,1739943040474,-152.0,0.00014118,2]
[353588066,1739943040485,-500.0,0.00014157,2]
[353588067,1739943040495,-278.97,0.00014158,2]
[353588068,1739943040505,-500.0,0.00014164,2]
[353588069,1739943040514,-500.0,0.0001419,2]
[353588070,1739943040524,-500.0,0.0001419,2]
[353588071,1739943040535,-500.0,0.0001419,2]
[353588072,1739943040545,-165.51770334,0.0001419,2]
[353588073,1739943040555,-508.02085293,0.0001419,2]
[353588074,1739943040572,-500.0,0.0001419,2]
[353588075,1739943040585,-500.40770375,0.0001419,2]
[353588076,1739943040599,-500.0,0.0001419,2]
[353588077,1739943040609,-500.0,0.0001419,2]